bitfinex/quotes_ETHUSD_20250731
["timestamp","ask_amount","ask_price","bid_price","bid_amount"]
[1754003492652,0.4381,3727.3,3727.0,3.23311653]
[1754003492858,0.4511,3727.2,3727.1,0.55963212]
[1754003493069,0.8892,3727.2,3726.9,4.16]
[1754003493360,0.8892,3727.1,3726.7,0.55]
[1754003493573,0.4381,3727.1,3726.7,2.68331505]
[1754003493780,0.4381,3727.1,3726.8,2.68325882]
[1754003493781,0.4511,3727.0,3726.8,2.68325882]
[1754003493965,0.4381,3727.1,3726.9,0.26832588]
[1754003494136,0.4511,3727.1,3726.9,0.26832588]
[1754003494341,0.4511,3727.1,3727.0,0.1344]
[1754003495152,0.1344,3727.7,3727.0,0.1344]
[1754003495367,0.4511,3727.8,3727.4,0.1344]
[1754003495587,0.8892,3727.8,3727.4,0.1344]
[1754003495888,0.8892,3727.7,3727.4,0.1344]
[1754003496575,0.4511,3727.7,3727.4,2.81723443]
[1754003496989,0.4511,3727.7,3727.4,0.68442077]
[1754003497146,0.02,3727.9,3727.7,2.68259436]
[1754003497341,0.02,3727.9,3727.8,2.68254734]
[1754003497542,0.02,3727.9,3727.8,3.28574734]
[1754003498585,0.02,3727.9,3727.8,12.08130084]
[1754003498799,0.02,3727.9,3727.8,12.98097537]
[1754003500969,0.02,3727.9,3727.8,15.98097537]
[1754003502705,0.02,3727.9,3727.8,10.52494734]
[1754003503789,0.02,3727.9,3727.8,10.99374734]
[1754003504885,0.02,3727.9,3727.8,11.45144734]
[1754003505060,0.02,3728.9,3728.8,2.68182793]
[1754003505398,0.02,3728.9,3728.8,2.81622793]
[1754003506101,0.02,3728.9,3728.8,8.0087462]
[1754003506302,0.02,3728.9,3728.8,8.45072793]
[1754003508016,0.02,3728.9,3728.8,7.99302793]
[1754003508741,0.02,3728.9,3728.8,7.52422793]
[1754003509033,0.02,3728.9,3728.8,4.8424]
[1754003509331,0.02,3728.9,3728.8,7.52422793]
[1754003509719,0.02,3728.9,3728.8,8.02072793]
[1754003509924,0.02,3728.9,3728.8,8.49312793]
[1754003510432,0.02,3728.9,3728.8,4.33512793]
[1754003510737,0.02,3728.9,3728.8,3.36622793]
[1754003511523,0.9449,3728.9,3728.8,0.1344]
[1754003511708,0.9449,3728.9,3728.5,4.157]
[1754003511924,0.9249,3728.8,3728.5,4.157]
[1754003512122,0.9249,3728.7,3728.3,4.156]
[1754003512355,0.9249,3728.6,3728.2,4.156]
[1754003512500,0.02,3728.9,3728.3,10.07202803]
[1754003512697,0.02,3728.9,3728.5,0.55]
[1754003512901,0.02,3728.9,3728.5,3.23204271]
[1754003513150,0.5132,3728.9,3728.5,0.55]
[1754003513307,0.9449,3728.9,3728.5,0.55]
[1754003513507,0.9449,3728.9,3728.5,1.26234519]
[1754003513838,0.4932,3728.8,3728.5,1.26234519]
[1754003514439,0.4932,3728.8,3728.5,3.94437153]
[1754003514641,0.4932,3728.8,3728.5,1.26234519]
[1754003514951,0.02,3728.9,3727.6,0.4965]
[1754003515103,0.4317,3728.7,3727.9,2.68246259]
[1754003515438,0.4932,3728.6,3728.0,6.83839481]
[1754003515643,0.4932,3728.6,3728.0,4.156]
[1754003516441,0.4932,3728.6,3727.8,5.68252265]
[1754003516442,0.4317,3728.5,3727.8,3.0]
[1754003516741,0.4932,3728.4,3727.9,4.156]
[1754003517044,0.9249,3728.3,3727.3,4.6525]
[1754003517250,0.9249,3728.3,3727.6,0.55]
[1754003517399,0.9249,3728.3,3727.6,3.23266524]
[1754003517602,0.4932,3728.2,3727.0,8.68752803]
[1754003517924,0.9249,3728.2,3727.2,0.55]
[1754003518227,0.9249,3728.1,3727.2,0.55]
[1754003518548,0.4932,3728.0,3727.2,3.54054802]
[1754003518838,0.4932,3728.0,3727.3,0.55]
[1754003519244,0.4317,3727.9,3727.1,0.55]
[1754003519535,0.4317,3727.9,3727.1,3.23300573]
[1754003519753,0.4932,3727.8,3726.7,2.68329373]
[1754003519914,0.4317,3727.7,3727.1,2.68304767]
[1754003520116,0.4932,3727.6,3727.1,2.68299744]
[1754003520303,0.4932,3727.5,3726.9,2.68317922]
[1754003520509,0.9249,3727.5,3727.0,0.55]
[1754003520741,0.9249,3727.4,3727.0,0.55]
[1754003520910,0.9249,3727.3,3726.9,0.55]
[1754003521114,0.4317,3727.3,3726.9,0.55]
[1754003521320,0.4932,3727.2,3726.8,0.55]
[1754003521643,0.4932,3727.6,3727.2,0.1344]
[1754003521802,1.0593,3728.0,3727.2,0.4965]
[1754003522002,0.4932,3727.8,3727.5,0.1344]
[1754003522420,0.1344,3728.0,3727.5,0.1344]
[1754003522633,0.9249,3727.7,3727.5,0.1344]
[1754003522819,0.4317,3727.7,3727.5,0.1344]
[1754003523025,0.4932,3727.6,3727.5,0.1344]
[1754003523946,0.9249,3727.6,3727.5,0.1344]
[1754003524952,0.1344,3728.0,3727.5,0.1344]
[1754003524953,0.4932,3728.0,3727.5,0.1344]
[1754003525137,0.4932,3728.2,3727.5,8.82192803]
[1754003525336,0.4932,3728.2,3727.9,0.1344]
[1754003525542,0.4932,3728.2,3727.7,2.68260805]
[1754003525752,0.4932,3728.2,3728.1,0.1344]
[1754003526525,0.4317,3728.3,3728.1,0.1344]
[1754003526731,4.6492,3728.5,3728.1,0.1344]
[1754003526934,0.9249,3728.3,3728.1,0.1344]
[1754003527953,0.4932,3728.2,3728.1,0.1344]
[1754003528152,0.9249,3728.2,3728.1,0.1344]
[1754003528360,0.4932,3728.2,3728.1,0.1344]
[1754003528670,5.0809,3728.5,3728.1,0.1344]
[1754003529154,0.4932,3728.4,3728.1,0.1344]
[1754003530124,4.156,3728.5,3728.1,0.1344]
[1754003530451,0.9249,3728.3,3727.4,2.68278009]
[1754003530653,0.9249,3728.3,3727.6,0.55]
[1754003530966,0.9249,3728.3,3727.9,2.68245725]
[1754003531172,0.9249,3728.3,3728.1,0.1344]
[1754003531774,0.5132,3728.9,3728.1,0.91258573]
[1754003531933,4.175,3728.9,3728.3,8.68752803]
[1754003532139,4.175,3728.9,3728.8,0.1344]
[1754003532583,5.0999,3728.9,3728.8,0.1344]
[1754003535876,4.175,3728.9,3728.8,0.1344]
[1754003536677,4.175,3728.9,3728.8,3.74832793]
[1754003536868,4.175,3728.9,3728.8,4.12316072]
[1754003537071,0.02,3728.9,3728.8,4.67316072]
[1754003537267,0.02,3728.9,3728.8,13.36068875]
[1754003538749,0.02,3728.9,3728.8,3.74106072]
[1754003539248,0.02,3728.9,3728.8,4.20666072]
[1754003539445,0.02,3728.9,3728.8,4.67316072]
[1754003540894,0.02,3728.9,3728.8,4.20666072]
[1754003542553,0.02,3728.9,3728.8,12.89508875]
[1754003542758,0.02,3728.9,3728.8,10.37426024]
[1754003543778,0.02,3728.9,3728.8,3.74106072]
[1754003543988,0.02,3728.9,3728.8,1.05923279]
[1754003544788,0.02,3728.9,3728.8,0.50923279]
[1754003544991,0.02,3728.9,3728.8,0.1344]
[1754003544992,0.9276,3728.9,3728.8,0.1344]
[1754003549195,0.02,3728.9,3728.8,0.1344]
[1754003549492,0.02,3728.9,3728.8,1.15]
[1754003549854,0.02,3728.9,3728.8,0.6844]
[1754003550058,0.02,3728.9,3728.8,1.53065946]
[1754003550259,0.02,3728.9,3728.8,4.21248739]
[1754003550460,0.02,3728.9,3728.8,5.14458739]
[1754003551896,0.02,3728.9,3728.8,5.17140566]
[1754003552076,0.02,3728.9,3728.8,5.14458739]
[1754003552397,0.02,3728.9,3728.8,9.29758739]
[1754003552704,0.02,3728.9,3728.8,9.50067066]
[1754003553006,0.02,3728.9,3728.8,18.16676275]
[1754003555313,0.02,3728.9,3728.8,9.50067066]
[1754003558095,0.02,3728.9,3728.8,12.50067066]
[1754003559824,0.02,3729.9,3729.8,2.6811089]
[1754003560022,0.02,3729.9,3729.8,2.8155089]
[1754003560596,0.02,3729.9,3729.8,3.8311089]
[1754003560799,0.02,3729.9,3729.8,3.3655089]
[1754003561618,0.02,3729.9,3729.8,0.6844]
[1754003561925,0.02,3729.9,3729.8,0.1344]
[1754003561926,0.9276,3729.9,3729.8,0.1344]
[1754003564128,0.02,3729.9,3729.8,0.1344]
[1754003564436,0.02,3729.9,3729.8,1.23408809]
[1754003564609,0.9276,3729.9,3729.8,0.6844]
[1754003564975,0.9276,3729.9,3729.1,5.68156385]
[1754003565233,0.9076,3729.8,3729.6,0.1344]
[1754003565729,0.9076,3729.7,3729.6,0.1344]
[1754003565934,5.0576,3729.7,3728.5,0.4656]
[1754003566134,4.15,3729.7,3729.3,0.1344]
[1754003566426,0.9076,3729.6,3729.3,0.1344]
[1754003566920,4.15,3729.7,3729.3,0.1344]
[1754003566921,0.9108,3729.5,3729.3,0.1344]
[1754003567299,0.6096,3729.9,3729.3,0.1344]
[1754003567489,0.6096,3729.9,3729.4,2.68134099]
[1754003567695,0.02,3729.9,3729.7,0.55]
[1754003568006,0.02,3729.9,3729.8,0.1344]
[1754003568405,0.02,3729.9,3729.8,2.8155089]
[1754003569532,0.02,3729.9,3729.8,0.1344]
[1754003570244,0.02,3729.9,3729.8,0.40259928]
[1754003570449,0.02,3729.9,3729.8,3.08370818]
[1754003571174,0.02,3729.9,3729.8,0.40259928]
[1754003571459,0.02,3729.9,3729.8,3.08370818]
[1754003571614,0.02,3729.9,3729.8,0.40259928]
[1754003572014,0.9308,3729.9,3729.8,0.1344]
[1754003572545,0.02,3729.9,3729.8,0.1344]
[1754003573049,0.4756,3729.9,3729.8,0.1344]
[1754003573217,0.02,3729.9,3729.8,0.1344]
[1754003573571,0.4756,3729.9,3729.8,0.1344]
[1754003573731,0.9308,3729.9,3729.8,0.1344]
[1754003574053,0.9308,3729.9,3729.6,0.1344]
[1754003574353,0.9108,3729.8,3729.6,0.1344]
[1754003574528,5.0598,3729.8,3729.6,0.1344]
[1754003574726,0.9108,3729.7,3729.6,0.1344]
[1754003574961,4.149,3729.8,3729.6,5.83669612]
[1754003574962,0.4556,3729.8,3729.6,5.83669612]
[1754003575253,0.9108,3729.7,3729.6,0.1344]
[1754003575667,0.02,3729.9,3729.6,0.1344]
[1754003575826,0.4756,3729.9,3729.6,5.83669612]
[1754003576030,0.4756,3729.9,3729.8,0.1344]
[1754003576280,0.02,3729.9,3729.8,0.1344]
[1754003577057,0.02,3729.9,3729.8,0.6194]
[1754003578365,0.02,3729.9,3729.8,3.3005089]
[1754003579363,0.02,3729.9,3729.8,0.6194]
[1754003579544,0.02,3729.9,3729.8,0.1344]
[1754003579947,0.9308,3729.9,3729.8,0.1344]
[1754003580488,0.9308,3729.9,3729.5,0.1344]
[1754003580631,0.9108,3729.8,3729.5,0.1344]
[1754003580985,1.56652,3729.8,3729.3,0.1344]
[1754003581137,0.65572,3729.8,3729.3,0.1344]
[1754003581341,0.9108,3729.7,3729.3,0.1344]
[1754003581638,0.4556,3729.7,3729.3,0.1344]
[1754003581876,0.02,3729.9,3729.3,0.1344]
[1754003582170,0.02,3729.9,3729.7,0.1344]
[1754003582639,4.148,3729.8,3729.5,0.55]
[1754003582836,4.148,3729.8,3729.7,0.1344]
[1754003583035,4.148,3729.8,3729.7,0.6844]
[1754003583235,0.02,3729.9,3729.7,3.36558079]
[1754003583474,0.02,3729.9,3729.8,3.1661089]
[1754003583671,0.02,3729.9,3729.8,4.1861089]
[1754003583878,0.02,3729.9,3729.8,4.94127787]
[1754003584186,0.02,3729.9,3729.8,13.76627645]
[1754003584490,0.02,3729.9,3729.8,5.07567787]
[1754003585276,0.02,3729.9,3729.8,3.57067787]
[1754003585439,0.02,3729.9,3729.8,2.8155089]
[1754003585636,0.02,3729.9,3729.8,3.3005089]
[1754003585876,0.02,3729.9,3729.8,4.3205089]
[1754003586415,0.02,3729.9,3729.8,3.8505089]
[1754003586610,0.02,3729.9,3729.8,3.3655089]
[1754003587037,0.02,3729.9,3729.8,3.8505089]
[1754003587237,0.02,3729.9,3729.8,3.3655089]
[1754003587978,0.02,3729.9,3729.8,0.1344]
[1754003588889,0.02,3729.9,3729.8,2.8155089]
[1754003589239,0.02,3729.9,3729.8,4.3205089]
[1754003591480,0.4566,3730.8,3729.8,4.3205089]
[1754003591481,0.001,3730.8,3730.5,8.6637875]
[1754003591659,0.001,3730.8,3730.5,11.82937071]
[1754003591843,0.001,3730.8,3730.5,3.16558321]
[1754003592279,0.001,3730.8,3730.7,0.1344]
[1754003592686,0.4566,3730.8,3730.7,0.1344]
[1754003592985,0.9118,3730.8,3730.7,0.1344]
[1754003594147,0.4566,3730.8,3730.7,0.1344]
[1754003594448,0.001,3730.8,3730.7,0.6844]
[1754003594675,0.001,3730.8,3730.7,3.36486211]
[1754003596075,0.001,3730.8,3730.7,0.6844]
[1754003596279,0.001,3730.8,3730.7,4.29356211]
[1754003596714,0.001,3730.8,3730.7,1.1694]
[1754003596922,0.14016053,3733.3,3730.9,2.68031842]
[1754003597227,0.4929,3733.3,3732.8,8.6637875]
[1754003597383,0.25087119,3733.2,3732.8,11.34274163]
[1754003597579,0.25087119,3733.2,3732.8,11.89274163]
[1754003597782,0.25087119,3733.1,3733.0,3.2288106]
[1754003597996,0.74372586,3733.8,3733.2,2.67862321]
[1754003598314,0.25082586,3733.7,3733.5,0.1336]
[1754003598617,0.50131217,3733.6,3733.5,0.1336]
[1754003599325,0.25048631,3733.6,3733.5,0.1336]
[1754003599531,0.02,3733.9,3733.5,0.1336]
[1754003600121,0.9586,3733.8,3733.4,4.154]
[1754003600336,0.4657,3733.8,3733.7,0.1336]
[1754003600483,0.4657,3733.8,3733.3,4.155]
[1754003600804,0.4657,3733.8,3733.2,0.1336]
[1754003600805,0.4657,3733.7,3733.2,0.1336]
[1754003600980,0.02284324,3733.6,3730.8,2.68036492]
[1754003601183,0.9586,3733.5,3731.8,0.4918]
[1754003601381,0.1336,3733.3,3732.7,0.1336]
[1754003601583,1.73852,3733.2,3732.7,0.1336]
[1754003601830,0.77992,3733.2,3732.7,0.1336]
[1754003602029,0.4929,3733.1,3732.5,4.155]
[1754003602184,0.4657,3733.4,3733.0,0.1336]
[1754003602383,6.8406,3733.5,3733.0,0.1336]
[1754003602628,0.9586,3733.3,3733.0,0.1336]
[1754003602837,0.9586,3733.3,3732.6,4.154]
[1754003603044,0.4929,3733.2,3732.8,0.1336]
[1754003603338,0.9586,3733.2,3732.8,0.1336]
[1754003603844,0.4929,3733.1,3732.8,0.1336]
[1754003604055,6.8406,3733.5,3732.8,0.1336]
[1754003604254,0.4929,3733.2,3732.8,0.1336]
[1754003604408,0.4929,3733.2,3732.6,4.154]
[1754003604601,0.4929,3733.2,3733.0,0.1336]
[1754003605648,0.4929,3733.1,3733.0,0.1336]
[1754003605972,0.9586,3733.1,3733.0,0.1336]
[1754003606767,0.9586,3733.1,3732.3,4.152]
[1754003606973,0.9586,3733.0,3732.5,0.1336]
[1754003607483,0.9586,3732.9,3732.5,0.1336]
[1754003607788,0.9586,3732.8,3732.5,0.1336]
[1754003608074,0.9586,3732.7,3732.5,0.1336]
[1754003608280,0.4657,3732.7,3732.5,0.1336]
[1754003608432,0.4929,3732.6,3732.5,0.1336]
[1754003608866,0.4657,3732.7,3732.5,0.1336]
[1754003609173,0.4929,3732.9,3732.5,0.1336]
[1754003609370,0.1336,3733.1,3732.5,0.1336]
[1754003609572,0.9586,3732.8,3732.5,0.1336]
[1754003609767,0.4929,3732.7,3732.5,0.1336]
[1754003611671,0.4657,3732.8,3732.5,0.1336]
[1754003612177,0.9586,3732.8,3732.5,0.1336]
[1754003612577,0.4929,3733.2,3732.5,0.4918]
[1754003612805,0.4929,3733.2,3732.7,0.1336]
[1754003613009,0.1336,3733.3,3732.7,0.1336]
[1754003613304,0.9586,3733.1,3732.7,0.1336]
[1754003613471,0.4929,3733.0,3732.7,0.1336]
[1754003614002,0.4929,3733.3,3732.7,0.4918]
[1754003614175,0.5993,3733.4,3732.9,0.1336]
[1754003614517,4.145,3733.6,3733.2,0.1336]
[1754003614518,0.4929,3733.6,3733.2,0.1336]
[1754003614868,0.4929,3733.6,3733.4,0.1336]
[1754003615385,0.9586,3733.6,3733.4,0.1336]
[1754003615709,0.4929,3733.6,3733.4,0.1336]
[1754003616671,0.9586,3733.6,3733.4,0.1336]
[1754003619274,0.98144324,3733.5,3732.7,4.694]
[1754003619470,0.52562,3733.6,3733.0,0.1336]
[1754003619813,0.1336,3733.5,3733.0,0.1336]
[1754003620307,0.6265,3733.5,3733.0,0.6254]
[1754003620872,0.1336,3733.5,3733.0,0.6254]
[1754003621084,4.7633,3733.9,3733.4,0.1336]
[1754003621285,0.1536,3733.9,3733.4,0.1336]
[1754003621511,0.6193,3733.9,3733.4,0.1336]
[1754003621814,0.9586,3733.8,3733.4,0.1336]
[1754003621977,0.4929,3733.7,3733.4,0.1336]
[1754003622177,0.4929,3733.6,3733.4,0.1336]
[1754003622370,0.1536,3733.9,3733.4,1.0691]
[1754003622576,0.1536,3733.9,3732.8,3.02678954]
[1754003622577,0.02,3733.9,3733.5,0.9355]
[1754003622811,0.02,3733.9,3733.6,0.1336]
[1754003623108,0.02,3733.9,3733.8,0.1336]
[1754003623486,0.02,3733.9,3733.8,1.0691]
[1754003623910,0.02,3733.9,3733.8,0.50834959]
[1754003624079,0.02,3733.9,3733.8,3.36183664]
[1754003624280,0.02,3733.9,3733.8,4.29733664]
[1754003624476,0.02,3733.9,3733.8,3.85363664]
[1754003624789,0.9786,3733.9,3733.1,2.67868071]
[1754003624973,0.9786,3733.9,3733.2,1.0418]
[1754003624974,0.02,3733.9,3733.2,1.0418]
[1754003625177,0.02,3733.9,3733.5,2.67839247]
[1754003625374,0.02,3733.9,3733.6,0.55]
[1754003625575,0.02,3733.9,3733.8,3.22823664]
[1754003625808,0.02,3733.9,3733.8,3.5510603]
[1754003626111,0.02,3733.9,3733.8,4.4865603]
[1754003626478,0.02,3733.9,3733.8,8.6375603]
[1754003626716,0.02,3733.9,3733.8,11.6375603]
[1754003627780,0.02,3733.9,3733.8,7.4865603]
[1754003628123,0.02,3733.9,3733.8,8.1928603]
[1754003628788,0.02,3733.9,3733.8,0.87282366]
[1754003629409,0.02,3733.9,3733.8,0.32282366]
[1754003629612,0.5129,3733.9,3733.6,2.67832684]
[1754003629939,0.02,3733.9,3733.4,4.149]
[1754003630278,0.02,3733.9,3733.4,4.6408]
[1754003630535,0.9271,3733.8,3733.2,4.698]
[1754003630738,0.9271,3733.8,3733.3,0.5698]
[1754003630893,0.4342,3733.8,3733.3,0.5698]
[1754003631094,0.4929,3733.7,3733.3,0.5698]
[1754003632250,0.4342,3733.8,3733.3,0.5698]
[1754003632538,0.02,3733.9,3733.3,0.5698]
[1754003632709,0.02,3733.9,3733.4,3.77370359]
[1754003633232,0.02,3733.9,3733.5,0.9382]
[1754003633813,0.5129,3733.9,3733.4,0.15698]
[1754003634032,0.5129,3733.9,3733.4,0.64878]
[1754003634428,0.5129,3733.9,3733.4,3.3272906]
[1754003634631,0.5129,3733.9,3733.5,0.40116519]
[1754003634834,0.5129,3733.9,3733.7,0.1336]
[1754003635738,0.9271,3733.8,3733.7,0.1336]
[1754003635904,0.9271,3733.8,3733.3,0.1336]
[1754003636235,0.9271,3733.7,3733.3,0.1336]
[1754003636453,0.1536,3733.9,3733.3,0.1336]
[1754003636729,0.9271,3733.6,3733.3,0.1336]
[1754003636932,0.1536,3733.9,3733.3,0.1336]
[1754003637107,0.9271,3733.5,3733.3,0.1336]
[1754003637312,0.9271,3733.4,3733.1,1.0]
[1754003637629,0.9271,3733.3,3733.1,1.1336]
[1754003637837,0.9271,3733.2,3733.1,1.1336]
[1754003638400,0.9271,3733.2,3733.1,1.0]
[1754003640846,1.0607,3733.2,3733.1,1.0]
[1754003641046,5.2037,3733.2,3733.1,1.0]
[1754003641960,6.69477,3733.2,3733.1,1.0]
[1754003642264,9.69477,3733.2,3733.1,1.0]
[1754003642669,12.37343709,3733.2,3733.1,1.0]
[1754003643066,9.69477,3733.2,3733.1,1.0]
[1754003643375,12.37343709,3733.2,3733.1,1.0]
[1754003643768,9.69477,3733.2,3733.1,1.0]
[1754003645775,12.37343709,3733.2,3733.1,1.0]
[1754003647173,5.55177,3733.2,3733.1,1.0]
[1754003647472,9.69577,3733.2,3733.1,1.0]
[1754003648583,12.37443709,3733.2,3733.1,1.0]
[1754003649109,9.69477,3733.2,3733.1,1.0]
[1754003649547,12.37343709,3733.2,3733.1,1.0]
[1754003656429,51.02912459,3733.2,3733.1,1e-08]
[1754003656757,33.377,3733.0,3731.3,0.4711]
[1754003657033,3.0,3731.9,3731.3,0.9324]
[1754003657343,3.0,3731.9,3731.1,0.02]
[1754003657344,3.0,3731.3,3731.1,0.02]
[1754003657502,10.862,3731.2,3731.1,0.02]
[1754003657697,11.69858723,3731.2,3731.1,0.02]
[1754003657901,15.85258723,3731.2,3731.1,0.02]
[1754003658545,13.17248432,3731.2,3731.1,0.02]
[1754003658836,15.85258723,3731.2,3731.1,0.02]
[1754003659041,15.98986253,3731.2,3731.1,0.02]
[1754003659656,15.98986253,3731.2,3730.1,0.02]
[1754003659657,16.30975962,3731.2,3730.1,0.02]
[1754003659860,3.0,3730.9,3730.1,0.4911]
[1754003660015,3.0,3730.7,3730.1,0.4911]
[1754003660221,4.165,3730.6,3730.1,0.4911]
[1754003660523,3.0,3730.7,3730.1,0.4911]
[1754003660716,4.165,3730.5,3730.1,0.02]
[1754003660915,4.165,3730.5,3730.2,0.9324]
[1754003661116,4.164,3730.4,3730.2,0.9324]
[1754003661719,4.164,3730.4,3730.3,0.4711]
[1754003661915,3.0,3730.7,3730.3,0.4711]
[1754003662154,4.163,3730.6,3730.4,0.9324]
[1754003662459,7.163,3730.6,3730.5,0.4711]
[1754003662617,3.0,3730.6,3730.5,0.4711]
[1754003662838,7.163,3730.6,3730.5,0.4711]
[1754003663750,4.163,3730.6,3730.5,0.4711]
[1754003664266,4.163,3730.6,3730.2,0.4711]
[1754003664435,6.712,3730.8,3730.3,0.9324]
[1754003664616,1.613,3733.0,3730.3,0.9324]
[1754003664617,6.711,3731.2,3730.7,8.6637875]
[1754003664818,6.709,3732.6,3730.9,0.55]
[1754003665045,4.171,3732.5,3731.0,0.9324]
[1754003665218,4.171,3732.5,3730.9,0.57680318]
[1754003665219,3.0,3732.4,3731.1,0.9324]
[1754003665446,3.0,3732.2,3730.9,3.23025489]
[1754003665757,10.88,3732.1,3731.0,0.9324]
[1754003666080,4.19384324,3732.0,3731.1,0.9324]
[1754003666220,4.19384324,3732.0,3731.1,0.4711]
[1754003666221,0.4574,3731.9,3731.1,0.4711]
[1754003666421,6.73284324,3731.8,3730.7,0.4613]
[1754003666629,6.73284324,3731.8,3730.8,0.4711]
[1754003666630,1.22258432,3731.7,3730.8,0.4711]
[1754003666831,4.19284324,3731.6,3730.8,0.4711]
[1754003667269,6.71,3731.8,3730.8,0.4711]
[1754003667474,0.4574,3732.4,3731.0,0.55]
[1754003667635,0.4574,3732.4,3731.3,0.1344]
[1754003667636,0.1336,3731.9,3731.3,0.1344]
[1754003667832,4.17,3731.8,3731.4,0.9324]
[1754003668032,4.17,3731.7,3731.3,0.1344]
[1754003668232,4.17,3731.7,3731.5,0.9324]
[1754003668473,4.17,3731.7,3731.6,0.9324]
[1754003668949,4.6274,3731.7,3730.9,0.4711]
[1754003669149,0.5506,3731.6,3731.1,0.1344]
[1754003669346,0.5506,3731.6,3731.2,0.4711]
[1754003669749,0.5506,3731.6,3731.3,0.4711]
[1754003669948,0.1336,3731.6,3731.3,0.4711]
[1754003670148,0.1336,3731.6,3731.4,0.4711]
[1754003671376,0.1336,3731.6,3731.1,0.6055]
[1754003671675,0.61384324,3731.6,3731.1,0.1344]
[1754003672954,0.919,3731.5,3730.8,0.4711]
[1754003673164,4.3006,3731.4,3730.9,0.1344]
[1754003673675,4.3006,3731.4,3731.0,0.4711]
[1754003673883,0.1336,3731.4,3730.9,0.1344]
[1754003674054,6.71,3732.0,3730.6,8.6637875]
[1754003674055,6.709,3732.4,3731.4,2.67993981]
[1754003674255,6.461,3732.9,3731.5,0.9324]
[1754003674256,0.4616,3732.7,3731.5,0.9324]
[1754003674462,6.461,3732.9,3731.2,0.55]
[1754003674463,0.1336,3732.4,3731.9,0.1336]
[1754003674646,0.1336,3732.4,3732.0,0.9324]
[1754003674848,0.1336,3732.4,3732.1,0.4711]
[1754003675257,4.167,3732.3,3732.2,0.4711]
[1754003675786,4.167,3732.3,3731.9,0.6047]
[1754003675963,4.167,3732.3,3732.0,0.4711]
[1754003676162,4.167,3732.3,3731.9,0.1336]
[1754003676484,4.167,3732.3,3731.7,2.67971656]
[1754003676485,4.165,3732.7,3732.0,0.4711]
[1754003678807,4.172,3732.6,3732.0,0.4711]
[1754003684396,0.4574,3732.5,3731.5,0.4711]
[1754003684615,0.919,3732.5,3731.7,2.67973861]
[1754003685093,0.919,3732.5,3731.7,1.0211]
[1754003685479,1.6415,3732.5,3731.7,0.4711]
[1754003685657,0.4574,3732.4,3731.7,0.4711]
[1754003685861,0.4574,3732.4,3731.7,3.15084301]
[1754003686458,0.4574,3732.4,3732.0,0.1336]
[1754003687059,0.9061,3732.4,3732.0,0.1336]
[1754003687362,0.4569,3732.3,3732.0,0.1336]
[1754003688364,0.9056,3732.3,3732.0,0.1336]
[1754003688767,0.4569,3732.2,3732.0,0.1336]
[1754003689973,0.4487,3732.1,3731.0,9.0915875]
[1754003690183,0.9056,3732.1,3731.6,0.1336]
[1754003690392,1.0392,3732.1,3731.6,0.1336]
[1754003691365,0.5905,3732.1,3731.6,0.1336]
[1754003691700,0.4569,3732.0,3731.6,0.1336]
[1754003695192,0.4569,3732.0,3731.6,0.5877]
[1754003695365,0.5823,3732.1,3731.6,0.5877]
[1754003695565,1.0392,3732.1,3731.6,0.5877]
[1754003696601,0.4569,3732.0,3731.4,0.4541]
[1754003696808,1.6368,3732.5,3731.7,5.69393164]
[1754003696989,4.158,3732.4,3732.0,5.69393164]
[1754003697189,6.708,3732.8,3731.7,3.10749876]
[1754003697190,7.1567,3733.3,3732.3,5.69393164]
[1754003697500,4.159,3732.8,3732.3,5.69393164]
[1754003697866,4.159,3732.8,3732.4,0.4541]
[1754003698075,1.3235,3732.7,3732.0,0.55]
[1754003698399,4.159,3732.6,3731.9,0.4541]
[1754003698701,4.6159,3732.6,3731.9,0.4541]
[1754003698904,4.159,3732.6,3731.9,0.4541]
[1754003699110,0.4569,3732.5,3731.9,0.4541]
[1754003699406,0.4569,3732.5,3731.9,3.13368283]
[1754003700001,0.4569,3732.5,3731.9,0.4541]
[1754003701390,1.41206,3732.5,3731.8,5.69393164]
[1754003701703,0.96336,3732.5,3731.9,2.6796002]
[1754003702612,0.96336,3732.5,3731.8,8.82768672]
[1754003702791,0.96336,3732.5,3731.9,0.4541]
[1754003702989,0.96336,3732.5,3731.9,3.13366493]
[1754003703183,0.4569,3732.5,3731.9,0.4541]
[1754003703400,0.4569,3732.5,3731.9,8.82758789]
[1754003703602,0.9056,3732.5,3731.7,0.4278]
[1754003703788,0.9056,3732.4,3730.0,2.68091326]
[1754003704085,4.159,3732.6,3731.3,5.69393164]
[1754003704086,0.9056,3732.3,3731.3,5.69393164]
[1754003704301,0.4569,3732.2,3731.4,3.13401486]
[1754003704898,0.4569,3732.2,3731.4,0.4541]
[1754003705095,4.154,3732.1,3731.4,0.4541]
[1754003705302,4.154,3732.1,3731.4,3.13405659]
[1754003705474,0.47974324,3732.0,3731.3,5.69393164]
[1754003705670,0.92844324,3732.0,3731.2,0.8819]
[1754003705913,0.4569,3731.9,3731.2,0.4541]
[1754003706108,0.02284324,3731.8,3731.2,0.4541]
[1754003706485,0.4569,3731.9,3731.3,5.69393164]
[1754003706690,0.4569,3731.9,3731.4,2.67995711]
[1754003707115,0.4569,3731.9,3731.5,0.4541]